fUSD/lending_fUSD_20251222
["ID","MTS","AMOUNT","RATE_DAILY","PERIOD"]
[399507764,1766419846264,-555.13,0.00016999,2]
[399507765,1766419846274,-555.27475033,0.00016999,2]
[399507766,1766419846284,-2448.11732961,0.00016999,2]
[399507767,1766419846293,-300.0,0.00016999,2]
[399507768,1766419846303,-300.0,0.00016999,2]
[399507769,1766419846313,-666.0,0.00016999,2]
[399507770,1766419846323,-500.0,0.00016999,2]
[399507771,1766419846335,-500.0,0.00016999,2]
[399507772,1766419846344,-500.0,0.00016999,2]
[399507773,1766419846355,-500.0,0.00016999,2]
[399507774,1766419846365,-500.0,0.00016999,2]
[399507775,1766419846374,-500.0,0.00016999,2]
[399507776,1766419846384,-500.0,0.00016999,2]
[399507777,1766419846394,-500.0,0.00016999,2]
[399507778,1766419846403,-376.9654415,0.00016999,2]
[399507779,1766419846414,-799.31,0.00016999,2]
[399507780,1766419846423,-799.31,0.00016999,2]
[399507781,1766419846433,-799.31,0.00016999,2]
[399507782,1766419846443,-799.31,0.00016999,2]
[399507783,1766419846453,-799.31,0.00016999,2]
[399507784,1766419846463,-799.31,0.00016999,2]
[399507785,1766419846472,-799.31,0.00016999,2]
[399507786,1766419846483,-799.31,0.00016999,2]
[399507787,1766419846492,-799.31,0.00016999,2]
[399507788,1766419846502,-799.31,0.00016999,2]
[399507789,1766419846512,-799.31,0.00016999,2]
[399507790,1766419846522,-799.31,0.00016999,2]
[399507791,1766419846531,-799.31,0.00016999,2]
[399507792,1766419846542,-799.31,0.00016999,2]
[399507793,1766419846552,-799.31,0.00016999,2]
[399507794,1766419846562,-799.31,0.00016999,2]
[399507795,1766419846571,-799.31,0.00016999,2]
[399507796,1766419846581,-799.31,0.00016999,2]
[399507797,1766419846590,-799.50753557,0.00016999,2]
[399507798,1766419846601,-500.0,0.00016999,2]
[399507799,1766419846613,-500.0,0.00016999,2]
[399507800,1766419846623,-500.0,0.00016999,2]
[399507801,1766419846633,-500.0,0.00016999,2]
[399507802,1766419846643,-500.0,0.00016999,2]
[399507803,1766419846653,-500.0,0.00016999,2]
[399507804,1766419846662,-493.48200881,0.00016999,2]
[399507805,1766419846672,-500.0,0.00016999,2]
[399507806,1766419846683,-500.0,0.00016999,2]
[399507807,1766419846692,-511.74808799,0.00016999,2]
[399507808,1766419846702,-500.0,0.00016999,2]
[399507809,1766419846711,-500.0,0.00016999,2]
[399507810,1766419846721,-500.0,0.00016999,2]
[399507811,1766419846731,-500.0,0.00016999,2]
[399507812,1766419846740,-500.0,0.00016999,2]
[399507813,1766419846750,-500.0,0.00016999,2]
[399507814,1766419846759,-547.3467704,0.00016999,2]
[399507815,1766419846769,-500.0,0.00016999,2]
[399507816,1766419846778,-500.0,0.00016999,2]
[399507817,1766419846787,-500.0,0.00016999,2]
[399507818,1766419846797,-500.0,0.00016999,2]
[399507819,1766419846806,-500.0,0.00016999,2]
[399507820,1766419846817,-500.0,0.00016999,2]
[399507821,1766419846827,-500.0,0.00016999,2]
[399507822,1766419846838,-300.0,0.00016999,2]
[399507823,1766419846849,-2334404.09873607,0.00017,2]
[399507824,1766419846875,-596.298,0.00017,2]
[399507825,1766419846887,-4365.43074627,0.00017,2]
[399507826,1766419847002,-176.97036574,0.00015833,2]
[399507827,1766419847011,-4574.59847002,0.00017,2]
[399507828,1766419847025,-682731.474422,0.00017,2]
[399507829,1766419847044,-691.24287986,0.00017,2]
[399507830,1766419847057,-1292.21190686,0.00017,2]
[399507831,1766419847068,-1573.13458229,0.00017,2]
[399507832,1766419847079,-1650.68809694,0.00017,2]
[399507833,1766419847090,-916.73474021,0.00017,2]
[399507834,1766419847101,-877.07771091,0.00017,2]
[399507835,1766419847111,-656.42984484,0.00017,2]
[399507836,1766419847124,-480.14190281,0.00017,2]
[399507837,1766419847136,-834.84277497,0.00017,2]
[399507841,1766419847580,-580.0299999,0.00015261,2]
[399507842,1766419847664,-986.89522002,0.00015261,2]
[399507843,1766419847678,-234.07478008,0.00015261,2]
[399507844,1766419847687,-1583.49837318,0.00016438,2]
[399507846,1766419847696,-1583.49837318,0.00016438,2]
[399507848,1766419847706,-23584.55125245,0.00017,2]
[399507850,1766419847718,-3511.30381811,0.00017,2]
[399507851,1766419847731,-5893.178389,0.00017,2]
[399507852,1766419847742,-380.99013,0.00017,2]
[399507853,1766419913730,-2000.0,0.00033099,120]
[399507854,1766419913829,-162.72259244,0.00035616,119]
[399507855,1766419913914,-233.89151502,0.00035616,102]
[399507856,1766419914097,-219.01813271,0.00037088,120]
[399507857,1766419914186,-190.87,0.00037808,60]
[399507858,1766419914274,-190.87,0.00037839,80]
[399507859,1766419914365,-190.87,0.00037869,100]
[399507860,1766419914460,-190.87,0.000379,120]
[399507861,1766419914559,-150.0,0.00038274,60]
[399507862,1766419914650,-157.29024472,0.00038274,60]
[399507863,1766419914742,-150.0,0.00038274,60]
[399507864,1766419914832,-150.0,0.00038274,60]
[399507865,1766419914919,-150.0,0.00038274,60]
[399507866,1766419915010,-150.0,0.00038274,60]
[399507867,1766419915102,-150.0,0.00038274,60]
[399507868,1766419915190,-150.92912493,0.00038274,60]
[399507869,1766419915279,-150.0,0.00038274,60]
[399507870,1766419915369,-500.0,0.00038274,60]
[399507871,1766419915458,-150.0,0.00038274,60]
[399507872,1766419915547,-151.51923746,0.00038274,60]
[399507873,1766419915634,-150.0,0.00038274,60]
[399507874,1766419915723,-150.0,0.00038274,60]
[399507875,1766419915811,-1869.0,0.00038274,60]
[399507876,1766419915901,-500.0,0.00038274,60]
[399507877,1766419915987,-1869.0,0.00038274,60]
[399507878,1766419916080,-1869.0,0.00038274,60]
[399507879,1766419916166,-1869.0,0.00038274,60]
[399507880,1766419916251,-1869.0,0.00038274,60]
[399507881,1766419916336,-1869.0,0.00038274,60]
[399507882,1766419916420,-1869.0,0.00038274,60]
[399507883,1766419916507,-500.0,0.00038274,60]
[399507884,1766419916596,-1869.0,0.00038274,60]
[399507885,1766419916681,-1869.0,0.00038274,60]
[399507886,1766419916768,-150.0,0.00038274,60]
[399507887,1766419916856,-1869.0,0.00038274,60]
[399507888,1766419916942,-1869.0,0.00038274,60]
[399507889,1766419917028,-1869.0,0.00038274,60]
[399507890,1766419917112,-1869.0,0.00038274,60]
[399507891,1766419917200,-1869.0,0.00038274,60]
[399507892,1766419917288,-1869.0,0.00038274,60]
[399507893,1766419917369,-1869.0,0.00038274,60]
[399507894,1766419917452,-1869.0,0.00038274,60]
[399507895,1766419917534,-1869.0,0.00038274,60]
[399507896,1766419917618,-1869.0,0.00038274,60]
[399507897,1766419917701,-1869.0,0.00038274,60]
[399507898,1766419917783,-1869.0,0.00038274,60]
[399507899,1766419917869,-1869.0,0.00038274,60]
[399507900,1766419917954,-1869.0,0.00038274,60]
[399507901,1766419918036,-1873.40804178,0.00038274,60]
[399507902,1766419918121,-150.0,0.00038274,60]
[399507903,1766419918205,-150.0,0.00038274,60]
[399507904,1766419918291,-150.0,0.00038301,60]
[399507905,1766419918376,-500.0,0.00038301,60]
[399507906,1766419918463,-284.32985892,0.00038301,60]
[399507907,1766419918548,-150.0,0.00038301,60]
[399507908,1766419918635,-500.0,0.00038301,60]
[399507909,1766419918721,-500.0,0.00038301,60]
[399507910,1766419918806,-187.0,0.00038301,60]
[399507911,1766419918893,-150.0,0.00038301,60]
[399507912,1766419918982,-150.0,0.00038301,60]
[399507913,1766419919070,-200.0,0.00038329,60]
[399507914,1766419919156,-500.0,0.00038329,60]
[399507915,1766419919248,-150.0,0.00038329,60]
[399507916,1766419919339,-226.0,0.00038329,60]
[399507917,1766419919427,-500.0,0.00038329,60]
[399507918,1766419919513,-253.42007769,0.00038329,60]
[399507919,1766419919600,-150.0,0.00038329,60]
[399507920,1766419919690,-300.0,0.00038356,120]
[399507921,1766419919780,-187.082477,0.00038356,120]
[399507922,1766419919871,-500.0,0.00038356,60]
[399507923,1766419919962,-250.0,0.00038356,60]
[399507924,1766419920062,-500.0,0.00038356,60]
[399507925,1766419920161,-150.0,0.00038356,60]
[399507926,1766419920266,-500.0,0.00038384,60]
[399507927,1766419920380,-500.0,0.00038384,60]
[399507928,1766419920483,-150.0,0.00038384,60]
[399507929,1766419920586,-500.0,0.00038411,60]
[399507930,1766419920683,-500.0,0.00038411,60]
[399507931,1766419920783,-500.0,0.00038438,60]
[399507932,1766419920877,-500.0,0.00038438,60]
[399507933,1766419920976,-623.05494499,0.00038466,60]
[399507934,1766419921072,-500.0,0.00038466,60]
[399507935,1766419921171,-500.0,0.00038493,60]
[399507936,1766419921273,-505.01496115,0.00038521,60]
[399507937,1766419921371,-1500.0,0.00038961,120]
[399507938,1766419921466,-1500.0,0.00038961,90]
[399507939,1766419921759,-151.0,0.00039,120]
[399507940,1766419921843,-151.0,0.00039,120]
[399507941,1766419921928,-419.942525,0.00039,120]
[399507942,1766419922013,-419.942525,0.00039,120]
[399507943,1766419922100,-419.942525,0.00039,120]
[399507944,1766419922188,-419.942521,0.00039,120]
[399507945,1766419922278,-170.417944,0.00039,120]
[399507946,1766419922369,-170.417944,0.00039,120]
[399507947,1766419922452,-151.0,0.00039,120]
[399507948,1766419922540,-170.417944,0.00039,120]
[399507949,1766419922626,-170.417944,0.00039,120]
[399507950,1766419922711,-289.559316,0.00039,120]
[399507951,1766419922798,-289.559316,0.00039,120]
[399507952,1766419922886,-312.48036,0.00039,120]
[399507953,1766419922973,-289.559316,0.00039,120]
[399507954,1766419923062,-329.102657,0.00039,120]
[399507955,1766419923149,-312.48036,0.00039,120]
[399507956,1766419923240,-289.559306,0.00039,120]
[399507957,1766419923330,-329.102657,0.00039,120]
[399507958,1766419923417,-312.48036,0.00039,120]
[399507959,1766419923505,-329.102657,0.00039,120]
[399507960,1766419923592,-312.480368,0.00039,120]
[399507961,1766419923677,-329.796046,0.00039,120]
[399507962,1766419923763,-329.102653,0.00039,120]
[399507963,1766419923850,-329.796046,0.00039,120]
[399507964,1766419923935,-151.0,0.00039,90]
[399507965,1766419924020,-329.796046,0.00039,120]
[399507966,1766419924107,-151.0,0.00039,90]
[399507967,1766419924195,-329.796044,0.00039,120]
[399507968,1766419924282,-676.872,0.00039547,90]
[399507969,1766419924367,-219.01813271,0.00039828,120]
[399507970,1766419924460,-1500.0,0.0003986,120]
[399507971,1766419924549,-152.64,0.0003992,120]
[399507972,1766419924636,-732.27682617,0.0003996,120]
[399507973,1766419924724,-173.0,0.0004,120]
[399507974,1766419924807,-156.0,0.0004,120]
[399507975,1766419924894,-152.64,0.0004002,120]
[399507976,1766419924981,-152.64,0.0004012,120]
[399507977,1766419925067,-152.64,0.0004022,120]
[399507978,1766419925159,-152.64,0.0004032,120]
[399507979,1766419925253,-152.64,0.0004042,120]
[399507980,1766419925344,-239.83302287,0.000405,120]
[399507981,1766419925435,-152.64,0.0004052,120]
[399507982,1766419925522,-173.0,0.000406,120]
[399507983,1766419925607,-156.0,0.000406,120]
[399507984,1766419925697,-152.64,0.0004062,120]
[399507985,1766419925787,-152.66,0.0004072,120]
[399507986,1766419925875,-1500.0,0.00040759,120]
[399507987,1766419925964,-1500.0,0.00041059,120]
[399507988,1766419926050,-1500.0,0.00041059,60]
[399507989,1766419926137,-1500.0,0.00041059,76]
[399507990,1766419926226,-1500.0,0.00041059,90]
[399507991,1766419926326,-500.0,0.00041095,120]
[399507992,1766419926417,-533.87731006,0.00041095,120]
[399507993,1766419926506,-500.0,0.00041095,120]
[399507994,1766419926592,-282.00904274,0.00041095,120]
[399507995,1766419926678,-500.0,0.00041095,120]
[399507996,1766419926766,-500.0,0.00041095,120]
[399507997,1766419926850,-500.0,0.00041095,120]
[399507998,1766419926937,-500.0,0.00041095,120]
[399507999,1766419927026,-500.0,0.00041095,120]
[399508000,1766419927116,-503.97301262,0.00041095,120]
[399508001,1766419927203,-666.66,0.00041095,120]
[399508002,1766419927294,-666.66,0.00041095,120]
[399508003,1766419927383,-500.0,0.00041095,120]
[399508004,1766419927473,-500.0,0.00041095,120]
[399508005,1766419927558,-666.66,0.00041095,120]
[399508006,1766419927643,-666.66,0.00041095,120]
[399508007,1766419927731,-500.0,0.00041095,120]
[399508008,1766419927819,-666.66,0.00041095,120]
[399508009,1766419927907,-362.75011754,0.00041095,120]
[399508010,1766419927997,-666.66,0.00041095,120]
[399508011,1766419928095,-666.66,0.00041095,120]
[399508012,1766419928193,-666.66,0.00041095,120]
[399508013,1766419928290,-666.66,0.00041095,120]
[399508014,1766419928383,-666.66,0.00041095,120]
[399508015,1766419928479,-666.66,0.00041095,120]
[399508016,1766419928577,-666.66,0.00041095,120]
[399508017,1766419928667,-666.66,0.00041095,120]
[399508018,1766419928757,-666.66,0.00041095,120]
[399508019,1766419928850,-666.66,0.00041095,120]
[399508020,1766419928951,-666.66,0.00041095,120]
[399508021,1766419929056,-666.66,0.00041095,120]
[399508022,1766419929145,-666.66,0.00041095,120]
[399508023,1766419929237,-666.66,0.00041095,120]
[399508024,1766419929329,-666.66,0.00041095,120]
[399508025,1766419929421,-666.66,0.00041095,120]
[399508026,1766419929513,-666.66,0.00041095,120]
[399508027,1766419929606,-666.66,0.00041095,120]
[399508028,1766419929704,-666.82,0.00041095,120]
[399508029,1766419929795,-500.0,0.00041095,120]
[399508030,1766419929889,-500.0,0.00041095,120]
[399508031,1766419929984,-500.0,0.00041095,120]
[399508032,1766419930085,-500.0,0.00041095,120]
[399508033,1766419930428,-537.65181294,0.00041095,120]
[399508034,1766419930529,-500.0,0.00041095,120]
[399508035,1766419930627,-500.0,0.00041095,120]
[399508036,1766419930721,-500.0,0.00041095,120]
[399508037,1766419930817,-512.72555991,0.00041095,120]
[399508038,1766419930909,-500.0,0.00041095,120]
[399508039,1766419931000,-500.0,0.00041095,120]
[399508040,1766419931088,-500.0,0.00041095,120]
[399508041,1766419931178,-500.0,0.00041095,120]
[399508042,1766419931266,-513.15426266,0.00041095,120]
[399508043,1766419931353,-303.34202968,0.00041095,120]
[399508044,1766419931442,-500.0,0.00041095,120]
[399508045,1766419931530,-500.0,0.00041095,120]
[399508046,1766419931618,-500.0,0.00041095,120]
[399508047,1766419931705,-500.0,0.00041095,120]
[399508048,1766419931790,-500.0,0.00041095,120]
[399508049,1766419931877,-500.0,0.00041095,120]
[399508050,1766419931964,-500.0,0.00041095,120]
[399508051,1766419932054,-500.0,0.00041095,120]
[399508052,1766419932143,-500.0,0.00041095,120]
[399508053,1766419932237,-500.0,0.00041095,120]
[399508054,1766419932333,-500.0,0.00041095,120]
[399508055,1766419932426,-500.0,0.00041095,120]
[399508056,1766419932516,-500.0,0.00041095,120]
[399508057,1766419932605,-500.0,0.00041095,120]
[399508058,1766419932696,-500.0,0.00041095,120]
[399508059,1766419932784,-500.0,0.00041095,120]
[399508060,1766419932871,-418.9481383,0.00041095,120]
[399508061,1766419932957,-500.0,0.00041095,120]
[399508062,1766419933045,-500.0,0.00041095,120]
[399508063,1766419933137,-500.0,0.00041095,120]
[399508064,1766419933229,-500.0,0.00041095,120]
[399508065,1766419933320,-500.0,0.00041095,120]
[399508066,1766419933409,-500.0,0.00041095,120]
[399508067,1766419933499,-500.0,0.00041095,120]
[399508068,1766419933587,-500.0,0.00041095,120]
[399508069,1766419933676,-500.0,0.00041095,120]
[399508070,1766419933767,-500.0,0.00041095,120]
[399508071,1766419933854,-500.0,0.00041095,120]
[399508072,1766419933946,-500.0,0.00041095,120]
[399508073,1766419934039,-500.0,0.00041095,120]
[399508074,1766419934129,-500.0,0.00041095,120]
[399508075,1766419934217,-286.55061808,0.00041095,120]
[399508076,1766419934306,-500.0,0.00041095,120]
[399508077,1766419934392,-529.67114152,0.00041095,120]
[399508078,1766419934479,-500.0,0.00041095,120]
[399508079,1766419934569,-500.0,0.00041095,120]
[399508080,1766419934657,-500.0,0.00041095,120]
[399508081,1766419934745,-500.0,0.00041095,120]
[399508082,1766419934831,-500.0,0.00041095,120]
[399508083,1766419934921,-500.0,0.00041095,120]
[399508084,1766419935007,-337.33848846,0.00041095,120]
[399508085,1766419935096,-500.0,0.00041095,120]
[399508086,1766419935183,-500.0,0.00041095,120]
[399508087,1766419935269,-500.0,0.00041095,120]
[399508088,1766419935356,-500.0,0.00041095,120]
[399508089,1766419935446,-240.33761976,0.00041095,120]
[399508090,1766419935531,-500.0,0.00041095,120]
[399508091,1766419935620,-501.55072492,0.00041095,120]
[399508092,1766419935704,-500.0,0.00041095,120]
[399508093,1766419935789,-500.0,0.00041095,120]
[399508094,1766419935874,-500.0,0.00041095,120]
[399508095,1766419935958,-500.0,0.00041095,120]
[399508096,1766419936048,-500.0,0.00041095,120]
[399508097,1766419936136,-500.0,0.00041095,120]
[399508098,1766419936230,-500.0,0.00041095,120]
[399508099,1766419936328,-513.34161545,0.00041095,120]
[399508100,1766419936419,-499.43963392,0.00041095,120]
[399508101,1766419936509,-504.30235955,0.00041095,120]
[399508102,1766419936601,-500.0,0.00041095,120]
[399508103,1766419936689,-500.0,0.00041095,120]
[399508104,1766419936775,-500.0,0.00041095,120]
[399508105,1766419936868,-500.0,0.00041095,120]
[399508106,1766419936959,-500.0,0.00041095,120]
[399508107,1766419937044,-503.95100333,0.00041095,120]
[399508108,1766419937127,-500.0,0.00041095,120]
[399508109,1766419937215,-500.0,0.00041095,120]
[399508110,1766419937304,-500.0,0.00041095,120]
[399508111,1766419937386,-500.0,0.00041095,120]
[399508112,1766419937469,-500.0,0.00041095,120]
[399508113,1766419937553,-500.0,0.00041095,120]
[399508114,1766419937635,-500.0,0.00041095,120]
[399508115,1766419937718,-514.92062724,0.00041095,120]
[399508116,1766419937797,-500.0,0.00041095,120]
[399508117,1766419937880,-510.37933417,0.00041095,120]
[399508118,1766419937961,-500.0,0.00041095,120]
[399508119,1766419938042,-500.0,0.00041095,120]
[399508120,1766419938124,-219.51292091,0.00041095,120]
[399508121,1766419938214,-500.0,0.00041095,120]
[399508122,1766419938302,-502.42612295,0.00041095,120]
[399508123,1766419938385,-500.0,0.00041095,120]
[399508124,1766419938471,-500.0,0.00041095,120]
[399508125,1766419938557,-500.0,0.00041095,120]
[399508126,1766419938644,-502.59170015,0.00041095,120]
[399508127,1766419938731,-500.0,0.00041095,120]
[399508128,1766419938991,-500.0,0.00041095,120]
[399508129,1766419939079,-500.0,0.00041095,120]
[399508130,1766419939169,-500.0,0.00041095,120]
[399508131,1766419939254,-500.0,0.00041095,120]
[399508132,1766419939340,-500.0,0.00041095,120]
[399508133,1766419939424,-500.0,0.00041095,120]
[399508134,1766419939508,-500.0,0.00041095,120]
[399508135,1766419939590,-500.0,0.00041095,120]
[399508136,1766419939679,-500.0,0.00041095,120]
[399508137,1766419939768,-500.0,0.00041095,120]
[399508138,1766419939853,-500.0,0.00041095,120]
[399508139,1766419939940,-500.0,0.00041095,120]
[399508140,1766419940028,-500.0,0.00041095,120]
[399508141,1766419940117,-500.0,0.00041095,120]
[399508142,1766419940207,-500.0,0.00041095,120]
[399508143,1766419940296,-500.0,0.00041095,120]
[399508144,1766419940381,-500.0,0.00041095,120]
[399508145,1766419940470,-500.0,0.00041095,120]
[399508146,1766419940555,-500.0,0.00041095,120]
[399508147,1766419940643,-415.71189135,0.00041095,120]
[399508148,1766419940729,-500.0,0.00041095,120]
[399508149,1766419940814,-500.0,0.00041095,120]
[399508150,1766419940898,-500.0,0.00041095,120]
[399508151,1766419940984,-455.25295156,0.00041095,120]
[399508152,1766419941069,-500.0,0.00041095,120]
[399508153,1766419941157,-500.0,0.00041095,120]
[399508154,1766419941244,-500.0,0.00041095,120]
[399508155,1766419941331,-500.0,0.00041095,120]
[399508156,1766419941416,-500.0,0.00041095,120]
[399508157,1766419941502,-500.0,0.00041095,120]
[399508158,1766419941591,-500.0,0.00041095,120]
[399508159,1766419941676,-500.0,0.00041095,120]
[399508160,1766419941759,-500.0,0.00041095,120]
[399508161,1766419941843,-531.9245281,0.00041095,120]
[399508162,1766419941926,-500.0,0.00041095,120]
[399508163,1766419942014,-500.0,0.00041095,120]
[399508164,1766419942100,-500.0,0.00041095,120]
[399508165,1766419942188,-500.0,0.00041095,120]
[399508166,1766419942278,-500.0,0.00041095,120]
[399508167,1766419942365,-502.82882602,0.00041095,120]
[399508168,1766419942454,-503.00536907,0.00041095,120]
[399508169,1766419942541,-500.0,0.00041095,120]
[399508170,1766419942629,-500.0,0.00041095,120]
[399508171,1766419942712,-500.0,0.00041095,120]
[399508172,1766419942797,-500.0,0.00041095,120]
[399508173,1766419942883,-518.21554209,0.00041095,120]
[399508174,1766419942967,-503.19965798,0.00041095,120]
[399508175,1766419943048,-500.73706192,0.00041095,120]
[399508176,1766419943132,-500.0,0.00041095,120]
[399508177,1766419943220,-500.0,0.00041095,120]
[399508178,1766419943310,-500.0,0.00041095,120]
[399508179,1766419943394,-500.0,0.00041095,120]
[399508180,1766419943477,-500.0,0.00041095,120]
[399508181,1766419943559,-500.0,0.00041095,120]
[399508182,1766419943642,-519.22455367,0.00041095,120]
[399508183,1766419943725,-500.0,0.00041095,120]
[399508184,1766419943809,-500.0,0.00041095,120]
[399508185,1766419943894,-500.0,0.00041095,120]
[399508186,1766419943978,-500.0,0.00041095,120]
[399508187,1766419944070,-500.0,0.00041095,120]
[399508188,1766419944165,-500.0,0.00041095,120]
[399508189,1766419944262,-500.0,0.00041095,120]
[399508190,1766419944357,-500.0,0.00041095,120]
[399508191,1766419944451,-507.09075874,0.00041095,120]
[399508192,1766419944544,-500.0,0.00041095,120]
[399508193,1766419944634,-259.89062797,0.00041095,120]
[399508194,1766419944721,-500.0,0.00041095,120]
[399508195,1766419944804,-500.0,0.00041095,120]
[399508196,1766419944885,-500.0,0.00041095,120]
[399508197,1766419944980,-500.0,0.00041095,120]
[399508198,1766419945069,-515.64146365,0.00041095,120]
[399508199,1766419945154,-502.71409935,0.00041095,120]
[399508200,1766419945237,-500.0,0.00041095,120]
[399508201,1766419945322,-500.0,0.00041095,120]
[399508202,1766419945405,-500.0,0.00041095,120]
[399508203,1766419945490,-500.0,0.00041095,120]
[399508204,1766419945573,-500.0,0.00041095,120]
[399508205,1766419945659,-500.0,0.00041095,120]
[399508206,1766419945745,-500.0,0.00041095,120]
[399508207,1766419945827,-500.0,0.00041095,120]
[399508208,1766419945911,-513.47114901,0.00041095,120]
[399508209,1766419945996,-500.0,0.00041095,120]
[399508210,1766419946080,-500.0,0.00041095,120]
[399508211,1766419946166,-561.66345641,0.00041095,120]
[399508212,1766419946257,-500.0,0.00041095,120]
[399508213,1766419946344,-500.0,0.00041095,120]
[399508214,1766419946431,-437.57243891,0.00041095,120]
[399508215,1766419946516,-500.0,0.00041095,120]
[399508216,1766419946606,-506.29917128,0.00041095,120]
[399508217,1766419946697,-500.0,0.00041095,120]
[399508218,1766419946784,-500.0,0.00041095,120]
[399508219,1766419946885,-500.0,0.00041095,120]
[399508220,1766419946975,-500.0,0.00041095,120]
[399508221,1766419947063,-500.0,0.00041095,120]
[399508222,1766419947153,-500.0,0.00041095,120]
[399508223,1766419947539,-326.27741285,0.00041095,120]
[399508224,1766419947626,-500.0,0.00041095,120]
[399508225,1766419947719,-308.03535723,0.00041095,120]
[399508226,1766419947809,-510.12648559,0.00041095,120]
[399508227,1766419947898,-500.0,0.00041095,120]
[399508228,1766419947985,-500.0,0.00041095,120]
[399508229,1766419948074,-500.0,0.00041095,120]
[399508230,1766419948159,-500.0,0.00041095,120]
[399508231,1766419948244,-500.0,0.00041095,120]
[399508232,1766419948327,-500.0,0.00041095,120]
[399508233,1766419948412,-500.0,0.00041095,120]
[399508234,1766419948498,-514.52475267,0.00041095,120]
[399508235,1766419948582,-500.0,0.00041095,120]
[399508236,1766419948669,-194.15377752,0.00041095,120]
[399508237,1766419948752,-500.0,0.00041095,120]
[399508238,1766419948838,-500.0,0.00041095,120]
[399508239,1766419948922,-500.0,0.00041095,120]
[399508240,1766419949007,-500.0,0.00041095,120]
[399508241,1766419949092,-513.60700751,0.00041095,120]
[399508242,1766419949177,-500.0,0.00041095,120]
[399508243,1766419949267,-500.0,0.00041095,120]
[399508244,1766419949359,-500.0,0.00041095,120]
[399508245,1766419949446,-500.0,0.00041095,120]
[399508246,1766419949532,-500.0,0.00041095,120]
[399508247,1766419949618,-315.87706151,0.00041095,120]
[399508248,1766419949709,-500.0,0.00041095,120]
[399508249,1766419949795,-500.0,0.00041095,120]
[399508250,1766419949883,-500.0,0.00041095,120]
[399508251,1766419949972,-503.99985019,0.00041095,120]
[399508252,1766419950063,-500.0,0.00041095,120]
[399508253,1766419950166,-500.0,0.00041095,120]
[399508254,1766419950258,-500.0,0.00041095,120]
[399508255,1766419950351,-500.0,0.00041095,120]
[399508256,1766419950440,-500.0,0.00041095,120]
[399508257,1766419950533,-500.0,0.00041095,120]
[399508258,1766419950622,-500.0,0.00041095,120]
[399508259,1766419950714,-500.0,0.00041095,120]
[399508260,1766419950801,-500.0,0.00041095,120]
[399508261,1766419950892,-500.0,0.00041095,120]
[399508262,1766419950982,-500.0,0.00041095,120]
[399508263,1766419951073,-530.31945451,0.00041095,120]
[399508264,1766419951164,-522.73559707,0.00041095,120]
[399508265,1766419951254,-414.32769831,0.00041095,120]
[399508266,1766419951345,-500.0,0.00041095,120]
[399508267,1766419951439,-500.0,0.00041095,120]
[399508268,1766419951531,-510.57734215,0.00041095,120]
[399508269,1766419951626,-500.0,0.00041095,120]